fUSD/lending_fUSD_20250104
["ID","MTS","AMOUNT","RATE_DAILY","PERIOD"]
[347624154,1735973446229,-500.0,9.999e-05,2]
[347624155,1735973446238,-500.0,9.999e-05,2]
[347624156,1735973446246,-500.0,9.999e-05,2]
[347624157,1735973446255,-427.6736754,9.999e-05,2]
[347624158,1735973446264,-500.0,9.999e-05,2]
[347624159,1735973446273,-500.0,9.999e-05,2]
[347624160,1735973446282,-500.0,9.999e-05,2]
[347624161,1735973446291,-500.0,9.999e-05,2]
[347624162,1735973446300,-500.0,9.999e-05,2]
[347624163,1735973446309,-500.0,9.999e-05,2]
[347624164,1735973446318,-328.32463064,9.999e-05,2]
[347624165,1735973446341,-171.67536936,9.999e-05,2]
[347624166,1735973446350,-309.73557624,9.999e-05,2]
[347624169,1735973984495,287.76,7.111e-05,2]
[347624180,1735974632415,-608.25,8.219e-05,2]
[347624181,1735974632425,-1338.11949073,9.278e-05,2]
[347624182,1735974632752,-482.60589255,9.278e-05,2]
[347624192,1735974638339,-21077.12461672,9.278e-05,2]
[347624193,1735974638350,-383.5497338,9.3e-05,2]
[347624194,1735974638476,-243.3702662,9.3e-05,2]
[347624195,1735974638485,-571.9,9.303e-05,2]
[347624196,1735974638494,-250.0,9.358e-05,2]
[347624197,1735974638503,-1000.0,9.361e-05,2]
[347624198,1735974638512,-250.0,9.535e-05,2]
[347624199,1735974638521,-327.0,9.606e-05,2]
[347624200,1735974638530,-460.083,9.88e-05,2]
[347624201,1735974638539,-19563.6903,9.899e-05,2]
[347624202,1735974638547,-511.63484131,9.899e-05,2]
[347624210,1735974640435,-1705.5582732,9.899e-05,2]
[347624211,1735974640575,-282.80688549,9.899e-05,2]
[347624212,1735974640585,-17.01314961,9.973e-05,2]
[347624213,1735974640597,-142.64960545,9.973e-05,2]
[347624214,1735974640606,-146.50039648,9.973e-05,2]
[347624215,1735974640617,-353.49960352,9.973e-05,2]
[347624216,1735974640627,-2288.601,9.973e-05,2]
[347624217,1735974640636,-165.237,9.973e-05,2]
[347624218,1735974640645,-500.0,9.998e-05,2]
[347624219,1735974640655,-524.66653679,9.998e-05,2]
[347624220,1735974640663,-500.0,9.998e-05,2]
[347624221,1735974640672,-500.0,9.998e-05,2]
[347624222,1735974640682,-500.0,9.998e-05,2]
[347624223,1735974640691,-67.33585969,9.998e-05,2]
[347624235,1735974643510,-432.66414031,9.998e-05,2]
[347624236,1735974643520,-532.35968392,9.998e-05,2]
[347624255,1735974646213,-823.99031608,9.998e-05,2]
[347624256,1735974646223,-334.409307,9.998e-05,2]
[347624257,1735974646233,-358.586682,9.998e-05,2]
[347624258,1735974646242,-987.07,9.998e-05,2]
[347624259,1735974646252,-500.0,9.998e-05,2]
[347624260,1735974646262,-500.0,9.998e-05,2]
[347624261,1735974646271,-500.0,9.998e-05,2]
[347624262,1735974646280,-500.0,9.998e-05,2]
[347624263,1735974646290,-500.0,9.998e-05,2]
[347624264,1735974646299,-500.0,9.998e-05,2]
[347624265,1735974646309,-500.0,9.998e-05,2]
[347624266,1735974646318,-500.0,9.998e-05,2]
[347624267,1735974646327,-500.0,9.998e-05,2]
[347624268,1735974646337,-500.0,9.998e-05,2]
[347624269,1735974646347,-500.0,9.998e-05,2]
[347624270,1735974646356,-500.0,9.998e-05,2]
[347624271,1735974646366,-500.0,9.998e-05,2]
[347624272,1735974646375,-500.0,9.998e-05,2]
[347624273,1735974646385,-500.0,9.998e-05,2]
[347624274,1735974646394,-280.28999383,9.998e-05,2]
[347624275,1735974646404,-500.0,9.998e-05,2]
[347624276,1735974646413,-500.0,9.998e-05,2]
[347624277,1735974646423,-500.0,9.998e-05,2]
[347624278,1735974646432,-500.0,9.998e-05,2]
[347624279,1735974646441,-500.0,9.998e-05,2]
[347624280,1735974646451,-500.0,9.998e-05,2]
[347624281,1735974646460,-500.0,9.998e-05,2]
[347624282,1735974646471,-500.0,9.998e-05,2]
[347624283,1735974646480,-549.22,9.998e-05,2]
[347624284,1735974646489,-500.0,9.998e-05,2]
[347624285,1735974646499,-500.0,9.998e-05,2]
[347624286,1735974646508,-500.0,9.998e-05,2]
[347624287,1735974646518,-805.47,9.998e-05,2]
[347624288,1735974646527,-500.0,9.998e-05,2]
[347624289,1735974646536,-500.0,9.998e-05,2]
[347624290,1735974646546,-500.0,9.998e-05,2]
[347624291,1735974646555,-500.0,9.998e-05,2]
[347624292,1735974646565,-3.76370108,9.998e-05,2]
[347624293,1735974646589,-292.80640999,9.998e-05,2]
[347624294,1735975023647,1687.0,0.00017,60]
[347624314,1735975636875,-800.0,8.219e-05,2]
[347624315,1735975638461,-800.0,8.219e-05,2]
[347624316,1735975639833,-800.0,8.219e-05,2]
[347624317,1735975641240,-800.0,8.219e-05,2]
[347624318,1735975642726,-800.0,8.219e-05,2]
[347624319,1735975644131,-800.0,8.219e-05,2]
[347624320,1735975646184,-800.0,8.219e-05,2]
[347624324,1735975771130,-335.9110823,8.219e-05,2]
[347624335,1735975831500,-2000.0,8.219e-05,2]
[347624345,1735975831721,-1081.89,8.219e-05,2]
[347624351,1735975837461,-97.1989177,8.219e-05,2]
[347624352,1735975837471,-577.83,8.219e-05,2]
[347624353,1735975837480,-585.53830027,8.801e-05,7]
[347624354,1735975837489,-1500.0,9.002e-05,2]
[347624355,1735975837498,-1164.628339,9.22e-05,2]
[347624356,1735975837507,-3944.1054,9.267e-05,2]
[347624357,1735975837517,-393.22,9.299e-05,2]
[347624358,1735975837530,-300.0,9.311e-05,2]
[347624359,1735975837540,-250.0,9.312e-05,2]
[347624360,1735975837549,-285.95,9.339e-05,2]
[347624361,1735975837558,-2000.0,9.366e-05,2]
[347624362,1735975837568,-1000.0,9.407e-05,2]
[347624363,1735975837577,-250.0,9.466e-05,2]
[347624364,1735975837586,-476.319,9.5e-05,2]
[347624365,1735975837595,-150.99,9.5e-05,2]
[347624366,1735975837605,-802.0636965,9.835e-05,2]
[347624367,1735975837615,-323.9263,9.899e-05,2]
[347624368,1735975837624,-3169.67,9.899e-05,2]
[347624369,1735975837633,-9077.75,9.899e-05,2]
[347624370,1735975837643,-299.99,9.899e-05,2]
[347624371,1735975837652,-562.5598,9.899e-05,2]
[347624372,1735975837663,-291.51443135,9.973e-05,2]
[347624373,1735975837672,-358.586683,9.998e-05,2]
[347624374,1735975837682,-334.409307,9.998e-05,2]
[347624375,1735975837691,-617.32,9.998e-05,2]
[347624376,1735975837701,-1369.25,9.998e-05,2]
[347624377,1735975837711,-384.11985256,9.998e-05,2]
[347624378,1735975837722,-519.93014744,9.998e-05,2]
[347624379,1735975837731,-678.77,9.998e-05,2]
[347624380,1735975837740,-502.83131452,9.998e-05,2]
[347624381,1735975837751,-1491.09,9.998e-05,2]
[347624382,1735975837760,-655.56,9.998e-05,2]
[347624383,1735975837769,-32.35944505,9.998e-05,2]
[347624384,1735975837787,-867.68055495,9.998e-05,2]
[347624385,1735975837797,-535.0,9.998e-05,2]
[347624386,1735975837807,-500.0,9.998e-05,2]
[347624387,1735975837816,-500.0,9.998e-05,2]
[347624388,1735975837825,-500.0,9.998e-05,2]
[347624389,1735975837835,-500.0,9.998e-05,2]
[347624390,1735975837844,-1296.95,9.998e-05,2]
[347624391,1735975837853,-500.0,9.998e-05,2]
[347624392,1735975837862,-500.0,9.998e-05,2]
[347624393,1735975837872,-500.0,9.998e-05,2]
[347624394,1735975837881,-824.39,9.998e-05,2]
[347624396,1735975837890,-500.0,9.998e-05,2]
[347624397,1735975837899,-500.0,9.998e-05,2]
[347624398,1735975837907,-500.0,9.998e-05,2]
[347624399,1735975837916,-500.0,9.998e-05,2]
[347624400,1735975837926,-500.0,9.998e-05,2]
[347624401,1735975837935,-500.0,9.998e-05,2]
[347624402,1735975837944,-500.0,9.998e-05,2]
[347624403,1735975837953,-500.0,9.998e-05,2]
[347624404,1735975837962,-500.0,9.998e-05,2]
[347624406,1735975837971,-500.0,9.998e-05,2]
[347624408,1735975837980,-500.0,9.998e-05,2]
[347624409,1735975837989,-500.0,9.998e-05,2]
[347624410,1735975837998,-500.0,9.998e-05,2]
[347624411,1735975838007,-500.0,9.998e-05,2]
[347624412,1735975838017,-500.0,9.998e-05,2]
[347624413,1735975838027,-500.0,9.998e-05,2]
[347624414,1735975838036,-500.0,9.998e-05,2]
[347624415,1735975838045,-500.0,9.998e-05,2]
[347624416,1735975838053,-500.0,9.998e-05,2]
[347624417,1735975838063,-500.0,9.998e-05,2]
[347624418,1735975838072,-500.0,9.998e-05,2]
[347624419,1735975838081,-500.0,9.998e-05,2]
[347624420,1735975838090,-500.0,9.998e-05,2]
[347624421,1735975838099,-1925.9,9.998e-05,2]
[347624422,1735975838109,-500.0,9.998e-05,2]
[347624423,1735975838118,-500.0,9.998e-05,2]
[347624424,1735975838127,-500.0,9.998e-05,2]
[347624425,1735975838136,-500.0,9.998e-05,2]
[347624426,1735975838145,-500.0,9.998e-05,2]
[347624427,1735975838154,-500.0,9.998e-05,2]
[347624428,1735975838163,-500.0,9.998e-05,2]
[347624429,1735975838172,-500.0,9.998e-05,2]
[347624430,1735975838182,-500.0,9.998e-05,2]
[347624431,1735975838191,-500.0,9.998e-05,2]
[347624432,1735975838200,-500.0,9.998e-05,2]
[347624433,1735975838210,-500.0,9.998e-05,2]
[347624434,1735975838220,-500.0,9.998e-05,2]
[347624435,1735975838231,-500.0,9.998e-05,2]
[347624436,1735975838240,-500.0,9.998e-05,2]
[347624437,1735975838250,-500.0,9.998e-05,2]
[347624438,1735975838259,-500.0,9.998e-05,2]
[347624439,1735975838268,-500.0,9.998e-05,2]
[347624440,1735975838278,-500.0,9.998e-05,2]
[347624441,1735975838287,-500.0,9.998e-05,2]
[347624442,1735975838296,-500.0,9.998e-05,2]
[347624443,1735975838305,-500.0,9.998e-05,2]
[347624444,1735975838314,-500.0,9.998e-05,2]
[347624445,1735975838324,-500.0,9.998e-05,2]
[347624446,1735975838333,-500.0,9.998e-05,2]
[347624447,1735975838343,-500.0,9.998e-05,2]
[347624448,1735975838353,-500.0,9.998e-05,2]
[347624449,1735975838363,-500.0,9.998e-05,2]
[347624450,1735975838372,-500.0,9.998e-05,2]
[347624451,1735975838381,-500.0,9.998e-05,2]
[347624452,1735975838391,-526.34,9.998e-05,2]
[347624453,1735975838400,-902.87,9.998e-05,2]
[347624454,1735975838409,-500.0,9.998e-05,2]
[347624455,1735975838419,-771.91,9.998e-05,2]
[347624456,1735975838428,-500.0,9.998e-05,2]
[347624457,1735975838437,-1719.71,9.998e-05,2]
[347624458,1735975838446,-1410.16,9.998e-05,2]
[347624459,1735975838455,-699.79,9.998e-05,2]
[347624460,1735975838465,-500.0,9.998e-05,2]
[347624461,1735975838476,-500.0,9.998e-05,2]
[347624462,1735975838486,-592.46,9.998e-05,2]
[347624464,1735975838495,-500.0,9.998e-05,2]
[347624466,1735975838505,-500.0,9.998e-05,2]
[347624467,1735975838514,-527.9,9.998e-05,2]
[347624468,1735975838524,-500.0,9.998e-05,2]
[347624469,1735975838535,-1350.28,9.998e-05,2]
[347624470,1735975838544,-500.0,9.998e-05,2]
[347624471,1735975838553,-682.44,9.998e-05,2]
[347624472,1735975838562,-1386.72,9.998e-05,2]
[347624473,1735975838571,-1004.55,9.998e-05,2]
[347624474,1735975838580,-818.46,9.998e-05,2]
[347624475,1735975838589,-4928.74,9.998e-05,2]
[347624476,1735975838599,-500.0,9.998e-05,2]
[347624477,1735975838609,-500.0,9.998e-05,2]
[347624478,1735975838618,-500.0,9.998e-05,2]
[347624479,1735975838627,-1764.52,9.998e-05,2]
[347624480,1735975838635,-500.0,9.998e-05,2]
[347624481,1735975838644,-500.0,9.998e-05,2]
[347624482,1735975838653,-1213.06,9.998e-05,2]
[347624483,1735975838662,-500.0,9.998e-05,2]
[347624484,1735975838671,-500.0,9.998e-05,2]
[347624485,1735975838680,-500.0,9.998e-05,2]
[347624486,1735975838689,-500.0,9.998e-05,2]
[347624487,1735975838698,-500.0,9.998e-05,2]
[347624488,1735975838707,-500.0,9.998e-05,2]
[347624489,1735975838715,-803.84,9.998e-05,2]
[347624490,1735975838724,-500.0,9.998e-05,2]
[347624491,1735975838733,-959.21,9.998e-05,2]
[347624492,1735975838743,-500.0,9.998e-05,2]
[347624493,1735975838752,-500.0,9.998e-05,2]
[347624494,1735975838761,-326.42176346,9.998e-05,2]
[347624495,1735975838774,-173.57823654,9.998e-05,2]
[347624496,1735975838783,-596.96,9.998e-05,2]
[347624497,1735975838792,-379.50473896,9.998e-05,2]
[347624498,1735975839494,-355.72425126,9.998e-05,2]
[347624499,1735975839624,-431.15909862,9.998e-05,2]
[347624500,1735975839752,-395.92311807,9.998e-05,2]
[347624501,1735975839763,-3248.24879309,9.998e-05,2]
[347624502,1735975839773,-500.0,9.998e-05,2]
[347624503,1735975839782,-500.0,9.998e-05,2]
[347624504,1735975839791,-494.38,9.998e-05,2]
[347624505,1735975839801,-500.0,9.998e-05,2]
[347624506,1735975839810,-500.0,9.998e-05,2]
[347624507,1735975839819,-541.06,9.998e-05,2]
[347624508,1735975839829,-500.0,9.998e-05,2]
[347624509,1735975839838,-500.0,9.998e-05,2]
[347624510,1735975839847,-1202.49776176,9.998e-05,2]
[347624511,1735975839859,-1414.81223824,9.998e-05,2]
[347624512,1735975839868,-945.94,9.998e-05,2]
[347624513,1735975839877,-500.0,9.998e-05,2]
[347624514,1735975839887,-1315.37,9.998e-05,2]
[347624515,1735975839897,-500.0,9.998e-05,2]
[347624516,1735975839906,-566.24,9.998e-05,2]
[347624517,1735975839915,-500.0,9.998e-05,2]
[347624518,1735975839925,-500.0,9.998e-05,2]
[347624519,1735975839934,-500.0,9.998e-05,2]
[347624520,1735975839944,-500.0,9.998e-05,2]
[347624521,1735975839954,-500.0,9.998e-05,2]
[347624522,1735975839964,-500.0,9.998e-05,2]
[347624523,1735975839974,-2726.51561174,9.998e-05,2]
[347624524,1735975839989,-527.00438826,9.998e-05,2]
[347624525,1735975839998,-1505.8826818,9.998e-05,2]
[347624526,1735975840010,-444.3173182,9.998e-05,2]
[347624527,1735975840019,-500.0,9.998e-05,2]
[347624528,1735975840029,-500.0,9.998e-05,2]
[347624529,1735975840038,-1240.21,9.998e-05,2]
[347624530,1735975840047,-500.0,9.998e-05,2]
[347624531,1735975840056,-500.0,9.998e-05,2]
[347624532,1735975840065,-327.82576781,9.998e-05,2]
[347624533,1735975840075,-2967.24691399,9.999e-05,2]
[347624534,1735975840086,-500.0,9.999e-05,2]
[347624535,1735975840097,-671.11125443,9.999e-05,2]
[347624536,1735975840108,-549.73316218,9.999e-05,2]
[347624537,1735975842489,-1648.05,9.998e-05,2]
[347624538,1735975842498,-591.6,9.998e-05,2]
[347624539,1735975842508,-7604.76139733,9.999e-05,2]
[347624540,1735975842537,-6177.18706618,9.999e-05,2]
[347624542,1735975842548,-12538.32830649,9.999e-05,2]
[347624544,1735975842559,-755.94323225,9.999e-05,2]
[347624548,1735975842687,-608.78640333,9.999e-05,2]
[347624549,1735975842698,-7973.51849858,9.999e-05,2]
[347624550,1735975842709,-16969.54342202,9.999e-05,2]
[347624551,1735975842721,-25229.92355078,9.999e-05,2]
[347624552,1735975842732,-270.64258265,9.999e-05,2]
[347624553,1735975842791,-6053.01259267,9.999e-05,2]
[347624554,1735975842909,-369.04840763,9.999e-05,2]
[347624565,1735975845470,-2810.92507554,9.999e-05,2]
[347624566,1735975845598,-441.75790001,9.999e-05,2]
[347624567,1735975845609,-11694.11041374,9.999e-05,2]
[347624580,1735976298843,-250.0,9.213e-05,2]
[347624581,1735976298868,-1000.0,9.293e-05,2]
[347624582,1735976298890,-250.0,9.349e-05,2]
[347624583,1735976298912,-167.19,9.49e-05,2]
[347624584,1735976298935,-473.028,9.5e-05,2]
[347624585,1735976298957,-1040.87929746,9.879e-05,2]
[347624586,1735976298983,-2500.0,9.899e-05,2]
[347624587,1735976299003,-500.0,9.973e-05,2]
[347624588,1735976299026,-3245.80935665,9.988e-05,2]
[347624589,1735976299053,-300.0,9.989e-05,2]
[347624590,1735976299075,-1000.0,9.99e-05,2]
[347624591,1735976299099,-1000.0,9.99e-05,2]
[347624592,1735976299120,-1000.0,9.99e-05,2]
[347624593,1735976299141,-1000.0,9.99e-05,2]
[347624594,1735976299162,-482.0,9.99e-05,3]
[347624595,1735976299184,-1000.0,9.99e-05,2]
[347624596,1735976299205,-1000.0,9.99e-05,2]
[347624597,1735976299227,-1000.0,9.99e-05,2]
[347624598,1735976299249,-1000.0,9.99e-05,2]
[347624599,1735976299270,-4427.4293976,9.993e-05,2]
[347624600,1735976299293,-500.0,9.998e-05,2]
[347624601,1735976299315,-866.38,9.998e-05,2]
[347624602,1735976299337,-500.0,9.998e-05,2]
[347624603,1735976299361,-239.06647102,9.998e-05,2]
[347624604,1735976299383,-500.0,9.998e-05,2]
[347624605,1735976299405,-1845.65,9.998e-05,2]
[347624606,1735976299432,-3117.95,9.998e-05,2]
[347624607,1735976299455,-500.0,9.998e-05,2]
[347624608,1735976299477,-500.0,9.998e-05,2]
[347624609,1735976299499,-270.438115,9.998e-05,2]
[347624610,1735976299521,-500.0,9.998e-05,2]
[347624611,1735976299543,-500.0,9.998e-05,2]
[347624612,1735976299564,-500.0,9.998e-05,2]
[347624613,1735976299586,-500.0,9.998e-05,2]
[347624614,1735976299607,-500.0,9.998e-05,2]
[347624615,1735976299629,-500.0,9.998e-05,2]
[347624616,1735976299652,-500.0,9.998e-05,2]
[347624617,1735976299674,-500.0,9.998e-05,2]
[347624618,1735976299695,-530.54782284,9.998e-05,2]
[347624619,1735976299718,-500.0,9.998e-05,2]
[347624620,1735976299740,-500.0,9.998e-05,2]
[347624621,1735976299763,-500.0,9.998e-05,2]
[347624622,1735976299785,-500.0,9.998e-05,2]
[347624623,1735976299806,-500.0,9.998e-05,2]
[347624624,1735976299828,-500.0,9.998e-05,2]
[347624625,1735976299851,-584.10412498,9.998e-05,2]
[347624626,1735976299872,-500.0,9.998e-05,2]
[347624627,1735976299895,-1260.56,9.998e-05,2]
[347624628,1735976299917,-500.0,9.998e-05,2]
[347624629,1735976299940,-500.0,9.998e-05,2]
[347624630,1735976299962,-500.0,9.998e-05,2]
[347624631,1735976299986,-500.0,9.998e-05,2]
[347624632,1735976300011,-262.19525445,9.998e-05,2]
[347624633,1735976300032,-500.0,9.998e-05,2]
[347624634,1735976300057,-500.0,9.998e-05,2]
[347624635,1735976300079,-500.0,9.998e-05,2]
[347624636,1735976300103,-500.0,9.998e-05,2]
[347624637,1735976300126,-500.0,9.998e-05,2]
[347624638,1735976300148,-500.0,9.998e-05,2]
[347624639,1735976300175,-500.0,9.998e-05,2]
[347624640,1735976300199,-500.0,9.998e-05,2]
[347624641,1735976300237,-500.0,9.998e-05,2]
[347624642,1735976300263,-906.53,9.998e-05,2]
[347624643,1735976300288,-500.0,9.998e-05,2]
[347624644,1735976300310,-500.0,9.998e-05,2]
[347624645,1735976300333,-500.0,9.998e-05,2]
[347624646,1735976300355,-500.0,9.998e-05,2]
[347624647,1735976300378,-500.0,9.998e-05,2]
[347624648,1735976300401,-500.0,9.998e-05,2]
[347624649,1735976300424,-500.0,9.998e-05,2]
[347624650,1735976300446,-500.0,9.998e-05,2]
[347624651,1735976300469,-1351.4,9.998e-05,2]
[347624652,1735976300491,-2557.4005714,9.998e-05,2]
[347624653,1735976300515,-1868.94,9.998e-05,2]
[347624654,1735976300538,-567.77,9.998e-05,2]
[347624655,1735976300561,-500.0,9.998e-05,2]
[347624656,1735976300584,-500.0,9.998e-05,2]
[347624657,1735976300608,-500.0,9.998e-05,2]
[347624658,1735976300630,-500.0,9.998e-05,2]
[347624659,1735976300653,-500.0,9.998e-05,2]
[347624660,1735976300676,-500.0,9.998e-05,2]
[347624661,1735976300698,-500.0,9.998e-05,2]
[347624662,1735976300721,-500.0,9.998e-05,2]
[347624663,1735976300743,-504.41,9.998e-05,2]
[347624664,1735976300767,-641.79,9.998e-05,2]
[347624665,1735976300807,-784.36,9.998e-05,2]
[347624666,1735976300843,-739.75,9.998e-05,2]
[347624667,1735976300872,-500.0,9.998e-05,2]
[347624668,1735976300904,-1162.51,9.998e-05,2]
[347624669,1735976300934,-542.64,9.998e-05,2]
[347624670,1735976300965,-500.0,9.998e-05,2]
[347624671,1735976301000,-500.0,9.998e-05,2]
[347624672,1735976301029,-500.0,9.998e-05,2]
[347624673,1735976301055,-505.9,9.998e-05,2]
[347624674,1735976301084,-770.35,9.998e-05,2]
[347624675,1735976301112,-1242.92,9.998e-05,2]
[347624676,1735976301142,-500.0,9.998e-05,2]
[347624677,1735976301171,-500.0,9.998e-05,2]
[347624678,1735976301199,-500.0,9.998e-05,2]
[347624679,1735976301226,-1328.94,9.998e-05,2]
[347624680,1735976301255,-2151.0732499,9.998e-05,2]
[347624681,1735976301284,-566.95,9.998e-05,2]
[347624682,1735976301311,-1428.97,9.998e-05,2]
[347624683,1735976301341,-4610.12,9.998e-05,2]
[347624684,1735976301368,-862.53,9.998e-05,2]
[347624685,1735976301397,-500.0,9.998e-05,2]
[347624686,1735976301426,-500.0,9.998e-05,2]
[347624687,1735976301452,-650.48,9.998e-05,2]
[347624688,1735976301480,-1691.0,9.998e-05,2]
[347624689,1735976301508,-500.0,9.998e-05,2]
[347624690,1735976301533,-500.0,9.998e-05,2]
[347624691,1735976301559,-500.0,9.998e-05,2]
[347624692,1735976301587,-500.0,9.998e-05,2]
[347624693,1735976301623,-1312.2,9.998e-05,2]
[347624694,1735976301651,-790.04,9.998e-05,2]
[347624695,1735976301678,-2508.25,9.998e-05,2]
[347624696,1735976301703,-500.0,9.998e-05,2]
[347624697,1735976301729,-500.0,9.998e-05,2]
[347624698,1735976301759,-628.24,9.998e-05,2]
[347624699,1735976301788,-919.25,9.998e-05,2]
[347624700,1735976301824,-512.71,9.998e-05,2]
[347624701,1735976301852,-145814.4198202,9.999e-05,2]
[347624702,1735976301881,-2000.0,9.999e-05,2]
[347624703,1735976301908,-500.0,9.999e-05,2]
[347624704,1735976301938,-500.0,9.999e-05,2]
[347624705,1735976301969,-1579.39,9.999e-05,2]
[347624706,1735976301997,-500.0,9.999e-05,2]
[347624707,1735976302027,-500.0,9.999e-05,2]
[347624708,1735976302055,-500.0,9.999e-05,2]
[347624709,1735976302083,-500.0,9.999e-05,2]
[347624710,1735976302112,-500.0,9.999e-05,2]
[347624711,1735976302141,-500.0,9.999e-05,2]
[347624712,1735976302167,-500.0,9.999e-05,2]
[347624713,1735976302193,-518.51,9.999e-05,2]
[347624714,1735976302218,-500.0,9.999e-05,2]
[347624715,1735976302244,-354.32638723,9.999e-05,2]
[347624716,1735976302270,-500.0,9.999e-05,2]
[347624717,1735976302297,-500.0,9.999e-05,2]
[347624718,1735976302323,-500.0,9.999e-05,2]
[347624719,1735976302348,-500.0,9.999e-05,2]
[347624720,1735976302374,-500.0,9.999e-05,2]
[347624721,1735976302399,-500.0,9.999e-05,2]
[347624722,1735976302427,-500.0,9.999e-05,2]
[347624723,1735976302454,-500.0,9.999e-05,2]
[347624724,1735976302479,-500.0,9.999e-05,2]
[347624725,1735976302504,-500.0,9.999e-05,2]
[347624726,1735976302529,-500.0,9.999e-05,2]
[347624727,1735976302553,-500.0,9.999e-05,2]
[347624728,1735976302578,-474.8745654,9.999e-05,2]
[347624729,1735976302603,-500.0,9.999e-05,2]
[347624730,1735976302629,-500.0,9.999e-05,2]
[347624731,1735976302654,-653.0,0.0001,2]
[347624732,1735976302683,-1680374.96951998,0.0001,2]
[347624733,1735976302707,-151.0,0.0001,2]
[347624734,1735976302731,-3000.0,0.0001,2]
[347624735,1735976302757,-13417.29545703,0.00010096,2]
[347624736,1735976302781,-271.553238,0.00010096,2]
[347624737,1735976302807,-244.03,0.00010137,2]
[347624738,1735976302833,-154.26,0.00010137,2]
[347624739,1735976302857,-397.99,0.00010137,2]
[347624740,1735976302882,-1720.19383463,0.000102,2]
[347624741,1735976302907,-638.38,0.00010219,2]
[347624742,1735976302934,-566.0,0.00010219,2]
[347624743,1735976302960,-150.736,0.00010219,2]
[347624744,1735976302990,-1990.811,0.00010219,2]
[347624745,1735976303014,-1258.0,0.00010219,2]
[347624746,1735976303039,-918.0,0.00010219,2]
[347624747,1735976303064,-822.0,0.00010219,2]
[347624748,1735976303322,-3785.104,0.00010219,2]
[347624749,1735976303359,-554.585,0.00010219,2]
[347624750,1735976303380,-3722.0,0.00010219,2]
[347624751,1735976303401,-1172.0,0.00010219,2]
[347624752,1735976303423,-9614.0,0.00010219,2]
[347624753,1735976303443,-1103.0,0.00010219,2]
[347624754,1735976303463,-977.33918259,0.00010262,2]
[347624755,1735976303487,-358.586683,0.00010272,2]
[347624756,1735976303508,-334.409307,0.00010272,2]
[347624757,1735976303530,-500.0,0.00010272,2]
[347624758,1735976303551,-500.0,0.00010272,2]
[347624759,1735976303572,-500.0,0.00010272,2]
[347624760,1735976303594,-500.0,0.00010272,2]
[347624761,1735976303616,-500.0,0.00010272,2]
[347624762,1735976303636,-500.0,0.00010272,2]
[347624763,1735976303657,-500.0,0.00010272,2]
[347624764,1735976303680,-500.0,0.00010272,2]
[347624765,1735976303702,-500.0,0.00010272,2]
[347624766,1735976303723,-500.0,0.00010272,2]
[347624767,1735976303746,-500.0,0.00010272,2]
[347624768,1735976303770,-500.0,0.00010272,2]
[347624769,1735976303791,-500.0,0.00010272,2]
[347624770,1735976303813,-902.87,0.00010272,2]
[347624771,1735976303834,-699.79,0.00010272,2]
[347624772,1735976303857,-1350.28,0.00010272,2]
[347624773,1735976303880,-4928.74,0.00010272,2]
[347624774,1735976303901,-500.0,0.00010272,2]
[347624775,1735976303924,-240.11428283,0.00010272,2]
[347624776,1735976303949,-500.0,0.00010272,2]
[347624777,1735976303973,-500.0,0.00010272,2]
[347624778,1735976303994,-500.0,0.00010272,2]
[347624779,1735976304016,-500.0,0.00010272,2]
[347624780,1735976304039,-500.0,0.00010272,2]
[347624781,1735976304061,-500.0,0.00010272,2]
[347624782,1735976304083,-500.0,0.00010272,2]
[347624783,1735976304104,-500.0,0.00010272,2]
[347624784,1735976304127,-1240.21,0.00010272,2]
[347624785,1735976304148,-500.0,0.00010272,2]
[347624786,1735976304169,-242.669176,0.00010272,2]
[347624787,1735976304190,-866.38,0.00010272,2]
[347624788,1735976304211,-500.0,0.00010272,2]